fUST/lending_fUST_20250905
["ID","MTS","AMOUNT","RATE_DAILY","PERIOD"]
[383671768,1757080247387,-74.30068441,0.0001452,2]
[383671770,1757080247397,-480.0,0.0001452,2]
[383671772,1757080247406,-480.0,0.0001452,2]
[383671774,1757080247415,-138.06976254,0.0001452,2]
[383675419,1757080286811,1000.0,0.00018595,20]
[383677243,1757080526571,159.34907097,0.00013598,2]
[383677244,1757080593554,253.89,0.00025,30]
[383677245,1757080647684,520.36748105,0.00025,30]
[383677247,1757080806857,298.77950806,0.00013598,2]
[383677251,1757080854344,300.0,0.0001356,2]
[383677253,1757080863260,5000.0,0.00013561,2]
[383677256,1757080872318,300.0,0.0001356,2]
[383677257,1757080881267,300.0,0.0001356,2]
[383677258,1757080899131,300.0,0.0001356,2]
[383677259,1757080908140,300.0,0.0001356,2]
[383677267,1757080924698,7927.81815688,0.00013561,2]
[383677272,1757080933785,300.0,0.0001356,2]
[383677274,1757080959526,300.0,0.0001356,2]
[383677275,1757080983576,3500.0,0.00013561,2]
[383677276,1757081087978,261.43206957,0.00013598,2]
[383677280,1757081368186,228.75306083,0.00013598,2]
[383677287,1757081398552,63881.56624366,0.0002739,120]
[383677342,1757081432622,-202.99976283,0.00013697,2]
[383677345,1757081432632,-500.0,0.00013697,2]
[383677347,1757081432642,-300.0,0.00013697,2]
[383677349,1757081432651,-35.91823765,0.00013698,2]
[383677637,1757081438685,-444.08176235,0.00013698,2]
[383677639,1757081438694,-157.77515956,0.00013698,2]
[383677641,1757081438703,-485.96456097,0.00013698,2]
[383677643,1757081438713,-157.0,0.00013698,2]
[383677644,1757081438722,-126.81711568,0.00013698,2]
[383677648,1757081438748,-30.18288432,0.00013698,2]
[383677650,1757081438758,-273.14138374,0.00013698,2]
[383677652,1757081438767,-232.74332234,0.00013698,2]
[383677654,1757081438776,-187.29853758,0.00013698,2]
[383677656,1757081438785,-131.11007876,0.00013698,2]
[383677658,1757081438797,-350.57851757,0.00013698,2]
[383677660,1757081438806,-480.0,0.00013698,2]
[383677662,1757081438815,-480.0,0.00013698,2]
[383677664,1757081438824,-308.80720636,0.00013698,2]
[383677925,1757081441261,-171.19279364,0.00013698,2]
[383677927,1757081441270,-480.0,0.00013698,2]
[383677929,1757081441280,-480.0,0.00013698,2]
[383677931,1757081441290,-480.0,0.00013698,2]
[383677933,1757081441305,-480.0,0.00013698,2]
[383677935,1757081441314,-480.0,0.00013698,2]
[383677937,1757081441324,-406.13610438,0.00013698,2]
[383677939,1757081441333,-480.0,0.00013698,2]
[383677941,1757081441343,-480.0,0.00013698,2]
[383677943,1757081441352,-480.0,0.00013698,2]
[383677945,1757081441361,-480.0,0.00013698,2]
[383677947,1757081441371,-480.0,0.00013698,2]
[383677949,1757081441380,-480.0,0.00013698,2]
[383677951,1757081441390,-370.33738716,0.00013698,2]
[383677953,1757081441400,-480.0,0.00013698,2]
[383677955,1757081441409,-480.0,0.00013698,2]
[383677956,1757081441419,-480.0,0.00013698,2]
[383677957,1757081441428,-480.0,0.00013698,2]
[383677958,1757081441437,-480.0,0.00013698,2]
[383677959,1757081441447,-480.0,0.00013698,2]
[383677960,1757081441456,-480.0,0.00013698,2]
[383677961,1757081441466,-480.0,0.00013698,2]
[383677962,1757081441475,-480.0,0.00013698,2]
[383677963,1757081441484,-480.0,0.00013698,2]
[383677964,1757081441494,-480.0,0.00013698,2]
[383677965,1757081441503,-265.17189862,0.00013698,2]
[383677966,1757081441513,-480.0,0.00013698,2]
[383677967,1757081441522,-480.0,0.00013698,2]
[383677968,1757081441532,-480.0,0.00013698,2]
[383677969,1757081441541,-480.0,0.00013698,2]
[383677971,1757081441554,-480.0,0.00013698,2]
[383677972,1757081441563,-480.0,0.00013698,2]
[383677973,1757081441572,-480.0,0.00013698,2]
[383677974,1757081441582,-480.0,0.00013698,2]
[383677976,1757081441591,-480.0,0.00013698,2]
[383677978,1757081441600,-480.0,0.00013698,2]
[383677980,1757081441611,-480.0,0.00013698,2]
[383677982,1757081441620,-480.0,0.00013698,2]
[383677984,1757081441629,-480.0,0.00013698,2]
[383677986,1757081441638,-516.40320907,0.00013698,2]
[383677988,1757081441647,-480.0,0.00013698,2]
[383677990,1757081441656,-480.0,0.00013698,2]
[383677992,1757081441665,-480.0,0.00013698,2]
[383677994,1757081441675,-407.9283612,0.00013698,2]
[383677996,1757081441684,-480.0,0.00013698,2]
[383677998,1757081441694,-480.0,0.00013698,2]
[383678000,1757081441703,-480.0,0.00013698,2]
[383678002,1757081441712,-480.0,0.00013698,2]
[383678004,1757081441721,-480.0,0.00013698,2]
[383678006,1757081441730,-480.0,0.00013698,2]
[383678008,1757081441740,-483.56632483,0.00013698,2]
[383678010,1757081441749,-480.0,0.00013698,2]
[383678012,1757081441758,-480.0,0.00013698,2]
[383678014,1757081441767,-480.0,0.00013698,2]
[383678016,1757081441777,-480.0,0.00013698,2]
[383678018,1757081441786,-480.0,0.00013698,2]
[383678020,1757081441795,-480.0,0.00013698,2]
[383678022,1757081441809,-480.0,0.00013698,2]
[383678024,1757081441818,-480.0,0.00013698,2]
[383678026,1757081441827,-480.0,0.00013698,2]
[383678028,1757081441837,-480.0,0.00013698,2]
[383678030,1757081441846,-480.0,0.00013698,2]
[383678032,1757081441855,-480.0,0.00013698,2]
[383678034,1757081441864,-480.0,0.00013698,2]
[383678036,1757081441873,-480.0,0.00013698,2]
[383678038,1757081441883,-187.1,0.00013698,2]
[383678040,1757081441892,-480.0,0.00013698,2]
[383678042,1757081441901,-500.0,0.00013698,2]
[383678043,1757081441911,-154.84,0.00013698,2]
[383678046,1757081441920,-350.2354693,0.00013698,2]
[383678237,1757081443696,-129.7645307,0.00013698,2]
[383678238,1757081443706,-157.0,0.00013698,2]
[383678239,1757081443715,-62.39536148,0.00013698,2]
[383678240,1757081443812,-417.60463852,0.00013698,2]
[383678241,1757081443822,-480.0,0.00013698,2]
[383678242,1757081443831,-480.0,0.00013698,2]
[383678243,1757081443840,-480.0,0.00013698,2]
[383678244,1757081443850,-480.0,0.00013698,2]
[383678245,1757081443859,-445.20069251,0.00013698,2]
[383678525,1757081446825,-34.79930749,0.00013698,2]
[383678527,1757081446834,-480.0,0.00013698,2]
[383678529,1757081446844,-480.0,0.00013698,2]
[383678531,1757081446853,-480.0,0.00013698,2]
[383678533,1757081446863,-480.0,0.00013698,2]
[383678535,1757081446872,-480.0,0.00013698,2]
[383678537,1757081446881,-480.0,0.00013698,2]
[383678539,1757081446891,-480.0,0.00013698,2]
[383678541,1757081446900,-480.0,0.00013698,2]
[383678543,1757081446910,-480.0,0.00013698,2]
[383678545,1757081446919,-480.0,0.00013698,2]
[383678547,1757081446929,-593.59,0.00013698,2]
[383678549,1757081446938,-506.71098924,0.00013698,2]
[383678551,1757081446947,-606.9,0.00013698,2]
[383678553,1757081446957,-480.0,0.00013698,2]
[383678555,1757081446966,-480.0,0.00013698,2]
[383678557,1757081446976,-480.0,0.00013698,2]
[383678559,1757081446985,-480.0,0.00013698,2]
[383678561,1757081446994,-480.0,0.00013698,2]
[383678575,1757081447115,-480.0,0.00013698,2]
[383678578,1757081447134,-480.0,0.00013698,2]
[383678580,1757081447144,-480.0,0.00013698,2]
[383678582,1757081447153,-480.0,0.00013698,2]
[383678584,1757081447163,-480.0,0.00013698,2]
[383678586,1757081447172,-360.43,0.00013698,2]
[383678588,1757081447183,-480.0,0.00013698,2]
[383678590,1757081447192,-480.0,0.00013698,2]
[383678592,1757081447201,-480.0,0.00013698,2]
[383678593,1757081447212,-480.0,0.00013698,2]
[383678595,1757081447222,-480.0,0.00013698,2]
[383678598,1757081447232,-3687.22,0.00013698,2]
[383678599,1757081447242,-480.0,0.00013698,2]
[383678601,1757081447252,-223.73,0.00013698,2]
[383678604,1757081447263,-480.0,0.00013698,2]
[383678606,1757081447272,-480.0,0.00013698,2]
[383678608,1757081447282,-860.73,0.00013698,2]
[383678610,1757081447292,-480.0,0.00013698,2]
[383678612,1757081447302,-480.0,0.00013698,2]
[383678613,1757081447311,-480.0,0.00013698,2]
[383678616,1757081447321,-274.37860939,0.00013698,2]
[383678618,1757081447332,-480.0,0.00013698,2]
[383678619,1757081447342,-500.01,0.00013698,2]
[383678621,1757081447352,-480.0,0.00013698,2]
[383678623,1757081447362,-491.21,0.00013698,2]
[383678625,1757081447372,-480.0,0.00013698,2]
[383678627,1757081447381,-480.0,0.00013698,2]
[383678629,1757081447390,-480.0,0.00013698,2]
[383678631,1757081447400,-480.0,0.00013698,2]
[383678633,1757081447409,-480.0,0.00013698,2]
[383678635,1757081447419,-480.0,0.00013698,2]
[383678637,1757081447429,-480.0,0.00013698,2]
[383678639,1757081447439,-480.0,0.00013698,2]
[383678641,1757081447448,-480.0,0.00013698,2]
[383678643,1757081447458,-269.87640173,0.00013698,2]
[383678646,1757081447471,-210.12359827,0.00013698,2]
[383678648,1757081447481,-480.0,0.00013698,2]
[383678650,1757081447491,-480.0,0.00013698,2]
[383678652,1757081447500,-480.0,0.00013698,2]
[383678654,1757081447510,-480.0,0.00013698,2]
[383678656,1757081447519,-306.71,0.00013698,2]
[383678658,1757081447528,-480.0,0.00013698,2]
[383678660,1757081447538,-480.0,0.00013698,2]
[383678662,1757081447547,-518.52,0.00013698,2]
[383678664,1757081447558,-480.0,0.00013698,2]
[383678666,1757081447568,-480.0,0.00013698,2]
[383678668,1757081447577,-480.0,0.00013698,2]
[383678670,1757081447587,-480.0,0.00013698,2]
[383678672,1757081447596,-480.0,0.00013698,2]
[383678674,1757081447606,-480.0,0.00013698,2]
[383678676,1757081447615,-480.0,0.00013698,2]
[383678678,1757081447624,-480.0,0.00013698,2]
[383678680,1757081447635,-480.0,0.00013698,2]
[383678682,1757081447644,-480.0,0.00013698,2]
[383678684,1757081447654,-480.0,0.00013698,2]
[383678686,1757081447663,-480.0,0.00013698,2]
[383678688,1757081447676,-506.81,0.00013698,2]
[383678690,1757081447685,-480.0,0.00013698,2]
[383678692,1757081447695,-480.0,0.00013698,2]
[383678694,1757081447704,-480.0,0.00013698,2]
[383678696,1757081447714,-480.0,0.00013698,2]
[383678698,1757081447723,-481.78947905,0.00013698,2]
[383678700,1757081447733,-480.0,0.00013698,2]
[383678702,1757081447742,-480.0,0.00013698,2]
[383678704,1757081447753,-882.09,0.00013698,2]
[383678706,1757081447762,-480.0,0.00013698,2]
[383678708,1757081447772,-480.0,0.00013698,2]
[383678710,1757081447781,-480.0,0.00013698,2]
[383678712,1757081447791,-275.88415978,0.00013698,2]
[383678714,1757081447800,-480.0,0.00013698,2]
[383678716,1757081447813,-480.0,0.00013698,2]
[383678718,1757081447822,-480.0,0.00013698,2]
[383678720,1757081447831,-1117.9,0.00013698,2]
[383678722,1757081447841,-480.0,0.00013698,2]
[383678724,1757081447850,-480.0,0.00013698,2]
[383678726,1757081447860,-480.0,0.00013698,2]
[383678728,1757081447869,-480.0,0.00013698,2]
[383678730,1757081447879,-480.0,0.00013698,2]
[383678732,1757081447888,-480.0,0.00013698,2]
[383678734,1757081447898,-480.0,0.00013698,2]
[383678736,1757081447908,-825.5,0.00013698,2]
[383678738,1757081447918,-480.0,0.00013698,2]
[383678740,1757081447927,-1027.61,0.00013698,2]
[383678742,1757081447937,-418.18733647,0.00013698,2]
[383678744,1757081447947,-482.06700503,0.00013698,2]
[383678746,1757081447956,-2258.35,0.00013698,2]
[383678748,1757081447966,-1204.03,0.00013698,2]
[383678750,1757081447975,-480.0,0.00013698,2]
[383678752,1757081447985,-399.76560817,0.00013698,2]
[383678754,1757081447994,-807.04,0.00013698,2]
[383678756,1757081448004,-480.0,0.00013698,2]
[383678758,1757081448014,-368.00354687,0.00013698,2]
[383678760,1757081448024,-157.0,0.00013698,2]
[383678762,1757081448034,-480.0,0.00013698,2]
[383678764,1757081448043,-500.0,0.00013698,2]
[383678766,1757081448055,-480.0,0.00013698,2]
[383678768,1757081448065,-1931.71,0.00013698,2]
[383678770,1757081448075,-459.6601612,0.00013698,2]
[383678772,1757081448085,-480.0,0.00013698,2]
[383678774,1757081448094,-480.0,0.00013698,2]
[383678776,1757081448104,-480.0,0.00013698,2]
[383678778,1757081448114,-480.0,0.00013698,2]
[383678780,1757081448124,-480.0,0.00013698,2]
[383678782,1757081448139,-328.78798777,0.00013698,2]
[383678784,1757081448149,-480.0,0.00013698,2]
[383678786,1757081448159,-1968.54,0.00013698,2]
[383678788,1757081448169,-480.0,0.00013698,2]
[383678790,1757081448179,-627.41,0.00013698,2]
[383678792,1757081448189,-668.8,0.00013698,2]
[383678794,1757081448198,-480.0,0.00013698,2]
[383678796,1757081448207,-500.0,0.00013698,2]
[383678798,1757081448217,-243.802115,0.00013699,2]
[383678800,1757081448227,-433.12017,0.00013699,2]
[383678802,1757081448236,-7767.14095531,0.00013872,2]
[383678804,1757081448246,-300.0,0.00013971,2]
[383678806,1757081448255,-300.0,0.00013971,2]
[383678808,1757081448264,-300.0,0.00013971,2]
[383678810,1757081448274,-300.0,0.00013971,2]
[383678812,1757081448284,-300.0,0.00013971,2]
[383678814,1757081448294,-300.0,0.00013971,2]
[383678816,1757081448306,-300.0,0.00013971,2]
[383678818,1757081448316,-300.0,0.00013971,2]
[383678820,1757081448325,-300.0,0.00013971,2]
[383678822,1757081448335,-300.0,0.00013971,2]
[383678824,1757081448345,-300.0,0.00013971,2]
[383678826,1757081448355,-300.0,0.00013971,2]
[383678828,1757081448364,-300.0,0.00013971,2]
[383678830,1757081448374,-300.0,0.00013971,2]
[383678832,1757081448384,-300.0,0.00013971,2]
[383678834,1757081448392,-600.0,0.00013971,2]
[383678837,1757081448401,-284.29137263,0.00013972,2]
[383678839,1757081448409,-157.0,0.00013972,2]
[383678841,1757081448417,-157.0,0.00013972,2]
[383678843,1757081448427,-157.0,0.00013972,2]
[383678845,1757081448437,-500.0,0.00013972,2]
[383678847,1757081448447,-480.0,0.00013972,2]
[383678849,1757081448456,-579.15659177,0.00013972,2]
[383678851,1757081448465,-510.95417383,0.00013972,2]
[383678853,1757081448475,-520.63,0.00013972,2]
[383678855,1757081448485,-480.0,0.00013972,2]
[383678857,1757081448494,-480.0,0.00013972,2]
[383678859,1757081448503,-306.38383361,0.00013972,2]
[383678861,1757081448513,-480.0,0.00013972,2]
[383678863,1757081448523,-480.0,0.00013972,2]
[383678865,1757081448534,-480.0,0.00013972,2]
[383678867,1757081448544,-480.0,0.00013972,2]
[383678869,1757081448557,-480.0,0.00013972,2]
[383678871,1757081448567,-158.88035983,0.00013972,2]
[383678873,1757081448576,-480.0,0.00013972,2]
[383678875,1757081448586,-480.0,0.00013972,2]
[383678877,1757081448596,-480.0,0.00013972,2]
[383678879,1757081448606,-480.0,0.00013972,2]
[383678881,1757081448615,-480.0,0.00013972,2]
[383678883,1757081448625,-480.0,0.00013972,2]
[383678885,1757081448634,-347.42,0.00013972,2]
[383678887,1757081448644,-480.0,0.00013972,2]
[383678889,1757081448654,-3687.22,0.00013972,2]
[383678891,1757081448664,-480.0,0.00013972,2]
[383678893,1757081448674,-860.73,0.00013972,2]
[383678895,1757081448684,-480.0,0.00013972,2]
[383678897,1757081448694,-491.21,0.00013972,2]
[383678899,1757081448703,-594.58,0.00013972,2]
[383678901,1757081448713,-480.0,0.00013972,2]
[383678903,1757081448723,-570.14,0.00013972,2]
[383678905,1757081448733,-480.0,0.00013972,2]
[383678907,1757081448742,-480.0,0.00013972,2]
[383678909,1757081448751,-480.0,0.00013972,2]
[383678911,1757081448760,-480.0,0.00013972,2]
[383678913,1757081448769,-480.0,0.00013972,2]
[383678915,1757081448779,-480.0,0.00013972,2]
[383678917,1757081448789,-268.80987405,0.00013972,2]
[383678919,1757081448799,-480.0,0.00013972,2]
[383678921,1757081448810,-480.0,0.00013972,2]
[383678923,1757081448820,-443.39357532,0.00013972,2]
[383678925,1757081448830,-506.81,0.00013972,2]
[383678927,1757081448840,-480.0,0.00013972,2]
[383678929,1757081448850,-480.0,0.00013972,2]
[383678931,1757081448860,-882.09,0.00013972,2]
[383678933,1757081448870,-1117.9,0.00013972,2]
[383678935,1757081448880,-480.0,0.00013972,2]
[383678937,1757081448890,-480.0,0.00013972,2]
[383678939,1757081448900,-480.0,0.00013972,2]
[383678941,1757081448909,-480.0,0.00013972,2]
[383678943,1757081448919,-480.0,0.00013972,2]
[383678945,1757081448929,-480.0,0.00013972,2]
[383678947,1757081448939,-825.5,0.00013972,2]
[383678949,1757081448948,-1027.61,0.00013972,2]
[383678951,1757081448958,-2258.35,0.00013972,2]
[383678953,1757081448967,-1204.03,0.00013972,2]
[383678955,1757081448977,-807.04,0.00013972,2]
[383678957,1757081448987,-480.0,0.00013972,2]
[383678959,1757081448996,-1931.71,0.00013972,2]
[383678961,1757081449006,-480.0,0.00013972,2]
[383678963,1757081449016,-480.0,0.00013972,2]
[383678965,1757081449025,-1968.54,0.00013972,2]
[383678967,1757081449035,-627.41,0.00013972,2]
[383678969,1757081449045,-668.8,0.00013972,2]
[383678971,1757081449056,-480.0,0.00013972,2]
[383678973,1757081449066,-500.0,0.00013972,2]
[383678975,1757081449075,-157.0,0.00014246,2]
[383678977,1757081449085,-178.51123307,0.00014246,2]
[383678979,1757081449094,-244.0,0.00014246,2]
[383678981,1757081449104,-500.0,0.00014246,2]
[383678983,1757081449113,-264.62347258,0.00014246,2]
[383678985,1757081449127,-480.0,0.00014246,2]
[383678987,1757081449137,-480.0,0.00014246,2]
[383678989,1757081449146,-480.0,0.00014246,2]
[383678991,1757081449156,-480.0,0.00014246,2]
[383678993,1757081449166,-480.0,0.00014246,2]
[383678995,1757081449176,-3687.22,0.00014246,2]
[383678997,1757081449185,-480.0,0.00014246,2]
[383678999,1757081449195,-860.73,0.00014246,2]
[383679001,1757081449209,-480.0,0.00014246,2]
[383679004,1757081449220,-491.21,0.00014246,2]
[383679006,1757081449230,-480.0,0.00014246,2]
[383679007,1757081449239,-480.0,0.00014246,2]
[383679010,1757081449249,-480.0,0.00014246,2]
[383679011,1757081449258,-480.0,0.00014246,2]
[383679014,1757081449268,-480.0,0.00014246,2]
[383679016,1757081449277,-480.0,0.00014246,2]
[383679018,1757081449286,-480.0,0.00014246,2]
[383679020,1757081449295,-506.81,0.00014246,2]
[383679022,1757081449305,-882.09,0.00014246,2]
[383679024,1757081449315,-1117.9,0.00014246,2]
[383679026,1757081449324,-480.0,0.00014246,2]
[383679028,1757081449334,-480.0,0.00014246,2]
[383679030,1757081449344,-480.0,0.00014246,2]
[383679032,1757081449355,-480.0,0.00014246,2]
[383679034,1757081449364,-825.5,0.00014246,2]
[383679036,1757081449374,-1027.61,0.00014246,2]
[383679038,1757081449384,-2258.35,0.00014246,2]
[383679040,1757081449393,-1204.03,0.00014246,2]
[383679042,1757081449402,-807.04,0.00014246,2]
[383679044,1757081449412,-480.0,0.00014246,2]
[383679046,1757081449422,-1931.71,0.00014246,2]
[383679048,1757081449431,-480.0,0.00014246,2]
[383679050,1757081449440,-480.0,0.00014246,2]
[383679052,1757081449449,-1968.54,0.00014246,2]
[383679053,1757081449458,-627.41,0.00014246,2]
[383679055,1757081449468,-668.8,0.00014246,2]
[383679057,1757081449478,-480.0,0.00014246,2]
[383679059,1757081449487,-439.78133356,0.00014246,2]
[383679061,1757081449497,-33798.57853634,0.00014378,2]
[383679113,1757081482066,13463.42768091,0.00013598,2]
[383679114,1757081501491,1000.0,0.00018966,20]
[383679116,1757082104272,200.15892827,0.00013598,2]
[383679117,1757082146452,4026.0,0.000135,2]
[383679118,1757082167983,1234.25083574,0.000136,2]
[383679119,1757082168015,2791.74916426,0.000136,2]
[383679135,1757082334833,175.13906221,0.00013598,2]
[383679160,1757082385039,-414.05850471,0.0001366,2]
[383679163,1757082390975,-534.0,0.0001366,2]
[383679165,1757082392722,-169.97848324,0.0001366,2]
[383679170,1757082398409,-233.61302026,0.0001366,2]
[383679171,1757082402680,-300.0,0.0001366,2]
[383679172,1757082404995,1351.65000821,0.00013523,2]
[383679174,1757082407508,-527.56906512,0.0001366,2]
[383679175,1757082410313,-441.28883195,0.0001366,2]
[383679178,1757082431023,1268.85789707,0.00013523,2]
[383679188,1757082460069,-200.89827586,0.0001366,2]
[383679192,1757082463176,-500.0,0.0001366,2]
[383679193,1757082464857,-480.17155877,0.0001366,2]
[383679194,1757082469376,-228.42226009,0.0001366,2]
[383679195,1757082469400,-4.57667152,0.00013697,2]
[383679196,1757082472292,-198.00801229,0.00013697,2]
[383679206,1757082478152,-97.41531619,0.00013697,2]
[383679207,1757082478175,-402.58468381,0.00013698,2]
[383679208,1757082480627,-77.41531619,0.00013698,2]
[383679209,1757082480657,-480.0,0.00013698,2]
[383679210,1757082480686,-480.0,0.00013698,2]
[383679211,1757082480715,-480.0,0.00013698,2]
[383679212,1757082480745,-480.0,0.00013698,2]
[383679213,1757082480772,-361.54419278,0.00013698,2]
[383679214,1757082480800,-349.3,0.00013698,2]
[383679215,1757082480831,-480.0,0.00013698,2]
[383679216,1757082480862,-397.67347456,0.00013698,2]
[383679217,1757082480891,-480.0,0.00013698,2]
[383679218,1757082480923,-480.0,0.00013698,2]
[383679219,1757082480953,-265.10570771,0.00013698,2]
[383679220,1757082481194,-480.0,0.00013698,2]
[383679221,1757082481225,-480.0,0.00013698,2]
[383679222,1757082481254,-480.0,0.00013698,2]
[383679223,1757082481283,-480.0,0.00013698,2]
[383679224,1757082481312,-480.0,0.00013698,2]
[383679225,1757082481344,-480.0,0.00013698,2]
[383679226,1757082481377,-1976.05,0.00013698,2]
[383679227,1757082481574,-990.67,0.00013698,2]
[383679228,1757082481609,-771.83,0.00013698,2]
[383679229,1757082481639,-480.0,0.00013698,2]
[383679230,1757082481668,-899.16,0.00013698,2]
[383679231,1757082481697,-480.0,0.00013698,2]
[383679232,1757082481728,-1034.22,0.00013698,2]
[383679233,1757082481852,-688.25,0.00013698,2]
[383679234,1757082481882,-480.0,0.00013698,2]
[383679235,1757082481913,-722.31,0.00013698,2]
[383679236,1757082481943,-480.0,0.00013698,2]
[383679237,1757082481975,-1690.25,0.00013698,2]
[383679238,1757082482005,-824.86,0.00013698,2]
[383679239,1757082482088,-198.06870858,0.00013698,2]
[383679240,1757082485552,-30.60129142,0.00013698,2]
[383679241,1757082485578,-370.56886337,0.00013698,2]
[383679242,1757082487136,-178.41113663,0.00013698,2]
[383679243,1757082487162,-408.58993176,0.00013698,2]
[383679244,1757082492299,-297.57006824,0.00013698,2]
[383679245,1757082492323,-2.42993176,0.00013698,2]
[383679246,1757082494408,205.66499134,0.00013561,2]
[383679248,1757082495143,-300.0,0.00013698,2]
[383679249,1757082496921,-200.0,0.00013698,2]
[383679257,1757082502490,-415.00964156,0.00013698,2]
[383679258,1757082527749,-360.54778552,0.00013698,2]
[383679260,1757082550753,300.0,0.0001356,2]
[383679261,1757082580074,-300.0,0.00013697,2]
[383679262,1757082580099,-121.24663595,0.00013698,2]
[383679263,1757082583761,-615.55662223,0.00013698,2]
[383679268,1757082586577,-178.7621868,0.00013698,2]
[383679271,1757082589783,-187.37954577,0.00013698,2]
[383679274,1757082591934,-265.67774397,0.00013698,2]
[383679276,1757082599526,-170.57908693,0.00013698,2]
[383679277,1757082600066,1463.49277627,0.00013561,2]
[383679279,1757082606196,-409.13081951,0.00013698,2]
[383679280,1757082606221,-112.11581644,0.00013698,2]
[383679281,1757082608124,-367.88418356,0.00013698,2]
[383679282,1757082608148,-132.11581644,0.00013698,2]
[383679283,1757082610529,-255.11698738,0.00013698,2]
[383679284,1757082613538,-92.76719618,0.00013698,2]
[383679285,1757082613561,-385.98616787,0.00013698,2]
[383679286,1757082615854,-94.01383213,0.00013698,2]
[383679287,1757082615879,-282.68918049,0.00013698,2]
[383679288,1757082618176,-197.31081951,0.00013698,2]
[383679289,1757082618202,-235.26639527,0.00013698,2]
[383679290,1757082622251,-222.27948148,0.00013698,2]
[383679291,1757082625115,649.33245098,0.00013561,2]
[383679292,1757082625162,-127.65412325,0.00013698,2]
[383679293,1757082625187,-103.56518351,0.00013698,2]
[383679420,1757082632758,-649.56481649,0.00013698,2]
[383679422,1757082632769,-480.0,0.00013698,2]
[383679423,1757082632779,-480.0,0.00013698,2]
[383679424,1757082632790,-480.0,0.00013698,2]
[383679425,1757082632800,-480.0,0.00013698,2]
[383679427,1757082632811,-480.0,0.00013698,2]
[383679429,1757082632821,-480.0,0.00013698,2]
[383679431,1757082632831,-480.0,0.00013698,2]
[383679433,1757082632841,-480.0,0.00013698,2]
[383679434,1757082632851,-480.0,0.00013698,2]
[383679435,1757082632862,-500.0,0.00013698,2]
[383679438,1757082632873,-602.93626026,0.00013698,2]
[383679441,1757082632887,-198.12838126,0.00013698,2]
[383679444,1757082632897,-480.0,0.00013698,2]
[383679446,1757082632909,-480.0,0.00013698,2]
[383679448,1757082632920,-480.0,0.00013698,2]
[383679449,1757082632931,-949.39,0.00013698,2]
[383679451,1757082632942,-861.7,0.00013698,2]
[383679452,1757082632953,-1893.72,0.00013698,2]
[383679453,1757082632965,-482.90221377,0.00013698,2]
[383679454,1757082632989,-480.0,0.00013698,2]
[383679455,1757082633001,-739.67,0.00013698,2]
[383679456,1757082633013,-480.0,0.00013698,2]
[383679457,1757082633027,-480.0,0.00013698,2]
[383679458,1757082633039,-480.0,0.00013698,2]
[383679459,1757082633050,-480.0,0.00013698,2]
[383679460,1757082633061,-1009.63,0.00013698,2]
[383679461,1757082633073,-480.0,0.00013698,2]